bitfinex/quotes_ETHUSD_20251108
["timestamp","ask_amount","ask_price","bid_price","bid_amount"]
[1762569201565,5.56655263,3454.2,3454.1,0.001]
[1762569206279,5.42305263,3454.2,3454.1,0.001]
[1762569207793,5.27955263,3454.2,3454.1,0.4838]
[1762569207947,4.15473834,3454.2,3454.1,0.4838]
[1762569208144,2.89502634,3454.2,3454.1,0.6686]
[1762569208364,0.002,3454.9,3454.1,1.1658]
[1762569208365,0.691,3454.5,3454.1,1.1658]
[1762569208569,4.15473834,3454.2,3454.1,1.1658]
[1762569209265,4.15473834,3454.2,3454.1,0.4838]
[1762569210465,1.259712,3454.2,3454.1,1.1658]
[1762569216087,4.15473834,3454.2,3454.1,0.001]
[1762569216268,5.01761424,3454.2,3454.1,0.001]
[1762569216777,5.42311824,3454.2,3454.1,0.001]
[1762569217284,5.56661824,3454.2,3454.1,0.001]
[1762569218192,5.42311824,3454.2,3454.1,0.001]
[1762569220480,5.56661824,3454.2,3454.1,0.001]
[1762569226587,3.4442818,3453.9,3453.8,1e-08]
[1762569226930,5.5389938,3453.9,3453.8,1e-08]
[1762569227095,5.6824938,3453.9,3453.8,1e-08]
[1762569230090,5.5389938,3453.9,3453.8,1e-08]
[1762569238846,5.6824938,3453.9,3453.8,1e-08]
[1762569239050,6.99322862,3453.9,3453.8,1e-08]
[1762569239796,6.99522862,3453.9,3453.8,1e-08]
[1762569240102,6.85122862,3453.9,3453.8,1e-08]
[1762569240547,4.5610807,3453.2,3453.1,0.006]
[1762569240727,5.3955807,3453.2,3453.1,0.006]
[1762569240900,6.51429401,3453.2,3453.1,0.006]
[1762569243374,4.1555767,3453.2,3453.1,1.1612]
[1762569243938,2.89582943,3453.3,3453.1,1.1612]
[1762569244142,2.89569699,3453.4,3453.2,0.9583]
[1762569244360,4.84638538,3453.5,3453.4,0.4946]
[1762569244846,4.15532514,3453.5,3453.4,0.9583]
[1762569245543,0.002,3453.9,3453.4,0.9583]
[1762569245749,2.8972778,3453.9,3453.8,0.4946]
[1762569245982,4.1569898,3453.9,3453.8,0.4946]
[1762569246161,4.1569898,3453.9,3453.8,0.9583]
[1762569246957,4.1569898,3453.9,3453.8,0.4946]
[1762569246958,0.002,3453.9,3453.8,0.4946]
[1762569247155,0.002,3453.9,3453.8,0.9583]
[1762569247355,2.8972778,3453.9,3453.8,0.9583]
[1762569248448,0.002,3453.9,3453.8,0.9583]
[1762569248771,0.002,3454.3,3453.9,2.89520733]
[1762569249091,0.002,3454.8,3454.5,0.4946]
[1762569249296,0.002,3454.8,3454.7,0.4946]
[1762569249791,0.002,3454.8,3454.7,0.9583]
[1762569250197,2.89652356,3454.8,3454.7,0.9583]
[1762569250880,0.002,3454.8,3454.7,0.9583]
[1762569252287,0.002,3454.8,3454.7,1.3580157]
[1762569254760,0.002,3454.8,3454.7,4.28156911]
[1762569254960,0.00389891,3455.0,3454.9,2.89443978]
[1762569255201,0.00389891,3455.0,3454.9,3.53303978]
[1762569255402,0.00389891,3455.0,3454.9,3.99673978]
[1762569255716,0.002,3455.6,3455.2,2.89418846]
[1762569256005,0.002,3455.6,3455.2,4.52874483]
[1762569256298,0.002,3455.6,3455.2,4.96350295]
[1762569256462,0.002,3455.6,3455.2,2.06931449]
[1762569256677,0.002,3455.6,3455.1,0.1969]
[1762569256678,2.89418846,3455.2,3455.1,0.1969]
[1762569256889,2.89452356,3454.8,3454.7,0.1969]
[1762569257091,0.002,3455.3,3455.1,0.4946]
[1762569257414,1.261712,3455.3,3455.2,0.52354188]
[1762569257576,1.261712,3455.3,3455.2,0.4946]
[1762569257795,0.002,3455.3,3455.2,0.9583]
[1762569258008,0.002,3455.3,3455.2,1.34645981]
[1762569258204,2.8961047,3455.3,3455.2,0.9583]
[1762569258920,2.8961047,3455.3,3455.2,0.4946]
[1762569259401,0.002,3455.3,3455.2,0.4946]
[1762569259607,2.8961047,3455.3,3455.2,0.9583]
[1762569260728,2.8961047,3455.3,3455.2,0.4946]
[1762569261498,2.89419773,3455.2,3454.9,0.4637]
[1762569261701,2.894356,3455.0,3454.9,0.4637]
[1762569262113,2.894356,3455.0,3454.9,0.9583]
[1762569263416,2.894356,3455.0,3454.8,0.1969]
[1762569263737,2.89466298,3454.7,3454.5,0.1969]
[1762569263936,0.002,3455.3,3454.6,0.9583]
[1762569264128,1.259712,3455.0,3454.6,0.4637]
[1762569264331,2.89445215,3454.9,3454.7,0.4637]
[1762569264502,2.89441652,3455.0,3454.7,0.4637]
[1762569265107,2.89441652,3455.0,3454.9,0.4946]
[1762569265720,2.89466807,3454.7,3454.5,0.1969]
[1762569266016,2.89436476,3455.0,3454.5,0.6606]
[1762569266329,0.002,3455.3,3455.1,0.4946]
[1762569266506,0.002,3455.3,3455.2,3.38878846]
[1762569266708,2.89286095,3456.8,3455.8,2.89368597]
[1762569266929,1.259712,3456.5,3455.8,3.38828597]
[1762569267137,3.03693725,3456.7,3455.8,4.02492282]
[1762569267443,1.403712,3456.7,3455.8,4.02492282]
[1762569267640,3.03693703,3456.7,3455.8,4.02492282]
[1762569267859,1.259712,3456.6,3455.8,3.99598597]
[1762569268013,2.89301887,3456.6,3455.8,3.99598597]
[1762569268209,0.144,3456.7,3455.8,1.1023]
[1762569268409,2.90060224,3455.9,3455.5,0.4637]
[1762569268654,0.007,3455.9,3455.7,0.144]
[1762569268920,0.007,3455.9,3455.8,0.4946]
[1762569269120,0.002,3456.1,3455.8,3.85198597]
[1762569269352,0.005,3456.9,3456.3,2.89326736]
[1762569269525,0.005,3456.9,3456.3,3.38786736]
[1762569269829,0.005,3456.9,3456.3,3.85156736]
[1762569271135,1.168712,3457.2,3456.7,2.8929261]
[1762569271356,0.005,3457.9,3457.2,2.89251417]
[1762569271656,0.005,3457.9,3457.1,0.6915]
[1762569271657,0.005,3457.9,3457.8,3.38661226]
[1762569271852,0.005,3457.9,3457.8,3.41553238]
[1762569272063,0.005,3457.9,3457.8,3.87923238]
[1762569272608,0.005,3457.9,3457.8,0.9583]
[1762569272812,0.005,3457.9,3457.8,3.85031226]
[1762569273248,0.005,3457.9,3457.8,4.5245613]
[1762569273813,0.005,3457.9,3457.8,1.63254904]
[1762569274013,0.005,3457.9,3457.8,0.9583]
[1762569274754,0.005,3457.9,3457.8,3.85031226]
[1762569274914,0.007,3457.9,3457.8,0.9583]
[1762569275720,0.007,3457.9,3457.3,0.4948]
[1762569275928,0.007,3457.9,3457.2,0.4948]
[1762569276128,0.007,3457.9,3457.3,2.89236756]
[1762569276458,0.007,3457.9,3457.8,0.485]
[1762569277558,0.007,3457.9,3457.8,3.87181226]
[1762569277925,0.007,3457.9,3457.8,0.485]
[1762569278645,0.007,3457.9,3457.8,0.9798]
[1762569279232,3.48715017,3457.9,3457.7,0.144]
[1762569279440,3.0654616,3457.9,3457.7,0.144]
[1762569279959,4.15172426,3457.8,3457.7,0.144]
[1762569280132,4.31822426,3457.8,3457.7,0.144]
[1762569280960,2.89245105,3457.3,3456.8,0.1903]
[1762569281258,0.43252243,3457.7,3457.2,0.144]
[1762569281458,1.69223443,3457.7,3457.3,0.4948]
[1762569281824,1.259712,3457.5,3457.2,0.144]
[1762569282163,2.8923492,3457.4,3457.2,0.144]
[1762569282464,1.259712,3457.4,3457.2,0.144]
[1762569282639,0.84,3457.9,3457.3,0.9031]
[1762569282828,1.259712,3457.6,3457.3,0.9031]
[1762569283229,2.89217954,3457.6,3457.5,0.4505]
[1762569283430,2.89211689,3457.7,3457.5,0.4505]
[1762569283632,4.15202285,3457.5,3457.2,0.144]
[1762569283838,2.89235128,3457.4,3457.2,0.144]
[1762569284063,2.8924305,3457.3,3457.2,0.144]
[1762569284862,0.40682263,3457.4,3457.2,0.5945]
[1762569285063,3.29917385,3457.4,3457.2,0.5945]
[1762569285425,2.8924305,3457.3,3457.2,0.5945]
[1762569285644,0.40682263,3457.4,3457.2,0.5945]
[1762569286040,3.29921674,3457.4,3457.2,0.144]
[1762569286367,0.91161355,3457.3,3457.2,0.144]
[1762569286555,2.89221006,3457.6,3457.2,1.0471]
[1762569286556,1.259712,3457.5,3457.2,1.0471]
[1762569286744,1.259712,3457.4,3457.2,0.144]
[1762569286944,2.89238069,3457.4,3457.2,0.144]
[1762569287340,1.259712,3457.5,3457.2,0.144]
[1762569287651,4.15201429,3457.5,3457.2,0.144]
[1762569287867,2.89226881,3457.5,3457.4,0.4505]
[1762569288067,3.59667818,3457.5,3457.2,0.5966]
[1762569288383,2.89234738,3457.4,3457.2,0.5966]
[1762569288681,0.70440937,3457.5,3457.2,0.5966]
[1762569289083,2.89242123,3457.4,3457.2,0.5966]
[1762569289285,2.8924305,3457.3,3457.2,0.144]
[1762569289649,2.89220724,3457.6,3457.2,1.0471]
[1762569289844,0.1665,3457.3,3457.2,0.144]
[1762569290091,1.259712,3457.3,3457.2,0.144]
[1762569290756,1.259712,3457.3,3457.2,1.0471]
[1762569291379,4.56733864,3457.3,3457.2,0.144]
[1762569291782,1.259712,3457.3,3457.2,0.5945]
[1762569291980,2.89893304,3457.9,3457.3,2.89241758]
[1762569292192,1.266712,3457.9,3457.4,0.02892346]
[1762569292357,1.266712,3457.9,3457.4,0.48152346]
[1762569292713,2.89201226,3457.8,3457.4,0.4526]
[1762569292892,0.29574847,3457.8,3457.4,0.4526]
[1762569293203,1.259712,3457.8,3457.7,0.4505]
[1762569293859,4.15172426,3457.8,3457.7,0.4505]
[1762569294192,1.259712,3457.8,3457.7,0.4505]
[1762569294359,4.15172426,3457.8,3457.7,0.4505]
[1762569295392,1.259712,3457.8,3457.7,0.4505]
[1762569295592,1.259712,3457.8,3457.1,0.001]
[1762569295593,1.259712,3457.7,3457.1,0.001]
[1762569295784,1.266712,3457.9,3457.7,0.4505]
[1762569296101,2.89897453,3457.9,3457.1,2.89359232]
[1762569296403,2.89897453,3457.9,3457.3,2.89236988]
[1762569296563,1.259712,3457.7,3457.2,2.89248057]
[1762569297158,2.8920959,3457.7,3457.1,0.001]
[1762569297361,2.8920959,3457.7,3457.1,2.89355061]
[1762569297557,2.8920959,3457.7,3457.2,2.89250774]
[1762569297870,0.58492424,3457.8,3457.6,0.4505]
[1762569298068,1.266712,3457.9,3457.4,2.89228682]
[1762569298598,2.89895037,3457.9,3457.4,0.4526]
[1762569298772,2.89201241,3457.8,3457.4,0.4526]
[1762569298973,2.89895004,3457.9,3457.4,0.4526]
[1762569299199,0.007,3457.9,3457.4,3.34494232]
[1762569299368,0.42170834,3457.8,3457.4,3.34494232]
[1762569299690,3.31372905,3457.8,3457.2,2.89248753]
[1762569299891,3.31372905,3457.8,3457.4,0.4526]
[1762569300318,3.31372905,3457.8,3457.4,3.34491852]
[1762569300319,0.42170834,3457.8,3457.4,3.34491852]
[1762569300519,0.42170834,3457.8,3457.7,0.4505]
[1762569300670,2.89210738,3457.7,3457.4,0.4526]
[1762569300866,3.51338201,3457.7,3457.1,3.34618632]
[1762569301180,3.35931417,3457.2,3457.1,0.001]
[1762569301369,4.61902617,3457.2,3457.1,0.001]
[1762569301576,5.72632617,3457.2,3457.1,0.001]
[1762569301906,6.13183017,3457.2,3457.1,0.001]
[1762569302075,7.04865572,3457.2,3457.1,0.001]
[1762569303416,6.64315172,3457.2,3457.1,0.001]
[1762569306230,7.04865572,3457.2,3457.1,0.001]
[1762569306579,5.53585172,3457.2,3457.1,0.001]
[1762569306804,2.17653755,3457.2,3457.1,0.001]
[1762569307009,1.259712,3457.2,3457.1,0.4762]
[1762569307926,0.62127463,3457.7,3457.1,0.9406]
[1762569308133,0.689,3457.7,3457.6,0.4752]
[1762569308339,0.007,3457.9,3457.6,0.9396]
[1762569308488,1.266712,3457.9,3457.7,0.4752]
[1762569309192,4.15865328,3457.9,3457.7,0.4752]
[1762569309384,1.266712,3457.9,3457.7,0.4752]
[1762569310090,0.007,3457.9,3457.8,0.4752]
[1762569311917,0.007,3457.9,3457.2,2.89248067]
[1762569311918,3.29252862,3457.9,3457.2,2.89248067]
[1762569312241,0.007,3457.9,3457.8,0.4752]
[1762569312385,0.007,3457.9,3457.8,3.36721226]
[1762569312585,0.8782,3457.9,3457.2,0.4644]
[1762569312926,3.96468348,3457.9,3457.2,2.89251351]
[1762569313255,3.96468348,3457.9,3457.3,2.89241688]
[1762569314524,1.0727,3457.9,3457.4,2.89234189]
[1762569315454,0.4842,3457.8,3457.1,0.4654]
[1762569315675,0.4842,3457.8,3457.2,2.89251417]
[1762569316014,3.37621988,3457.8,3457.2,2.89251417]
[1762569316749,2.89214571,3457.7,3457.4,0.144]
[1762569316953,2.89226319,3457.5,3457.4,0.144]
[1762569317161,2.89226319,3457.5,3457.1,0.001]
[1762569317162,0.4943,3457.2,3457.1,0.001]
[1762569321967,3.76481417,3457.2,3457.1,0.001]
[1762569322157,5.16852617,3457.2,3457.1,0.001]
[1762569325088,5.57403017,3457.2,3457.1,0.001]
[1762569327858,5.16852617,3457.2,3457.1,0.001]
[1762569328060,6.101566,3457.2,3457.1,0.001]
[1762569329606,6.50707,3457.2,3457.1,0.001]
[1762569335115,6.101566,3457.2,3457.1,0.001]
[1762569337040,6.790566,3457.2,3457.1,0.001]
[1762569337961,5.579566,3457.2,3457.1,0.001]
[1762569338100,6.646566,3457.2,3457.1,0.001]
[1762569338305,10.66981112,3457.2,3457.1,0.001]
[1762569339353,2.19275183,3457.2,3457.1,0.4527]
[1762569339571,2.89439792,3457.4,3457.1,0.938]
[1762569339746,2.89434685,3457.4,3457.3,0.4517]
[1762569339941,4.15405885,3457.4,3457.3,0.4517]
[1762569340761,2.89434685,3457.4,3457.3,0.4517]
[1762569342167,0.002,3457.4,3457.3,0.4517]
[1762569342331,0.002,3457.4,3457.3,0.9509]
[1762569342531,0.002,3457.4,3457.3,1.33535093]
[1762569342777,0.002,3457.4,3457.3,4.22778143]
[1762569343270,0.002,3457.8,3457.3,4.66220973]
[1762569343453,0.002,3457.8,3457.7,3.3896959]
[1762569343634,0.002,3457.8,3457.7,3.41861685]
[1762569343833,0.002,3457.8,3457.7,4.88805227]
[1762569344554,0.002,3457.8,3457.7,4.85913132]
[1762569348079,0.002,3457.8,3457.7,1.1408]
[1762569348283,0.002,3457.8,3457.7,0.6416]
[1762569348857,0.002,3457.8,3457.7,1.1408]
[1762569349462,0.002,3457.8,3457.7,1.16972095]
[1762569349664,0.002,3457.8,3457.7,4.0328959]
[1762569349896,0.002,3457.8,3457.7,4.43618549]
[1762569351305,0.002,3457.8,3457.7,1.54408959]
[1762569351618,0.002,3457.8,3457.7,0.6416]
[1762569353496,0.002,3457.8,3457.7,1.1408]
[1762569354482,0.002,3457.8,3457.7,0.144]
[1762569354838,3.30201226,3457.8,3457.7,0.144]
[1762569355016,0.74694847,3457.8,3457.4,0.144]
[1762569355315,0.41,3457.8,3457.4,0.144]
[1762569355488,0.41,3457.8,3457.4,0.6432]
[1762569355827,3.30207337,3457.8,3457.4,0.6432]
[1762569355969,0.002,3457.8,3457.7,0.4976]
[1762569356370,0.41,3457.8,3457.4,0.144]
[1762569356570,3.30201349,3457.8,3457.4,0.144]
[1762569356807,0.41,3457.8,3457.4,0.144]
[1762569357324,0.408,3457.5,3457.4,0.144]
[1762569358032,3.30026319,3457.5,3457.4,0.144]
[1762569358172,3.30026319,3457.5,3457.2,0.144]
[1762569358173,2.89249412,3457.3,3457.2,0.144]
[1762569358379,0.408,3457.2,3457.1,0.001]
[1762569360194,3.30051417,3457.2,3457.1,0.001]
[1762569360396,1.6896565,3457.2,3457.1,0.001]
[1762569360577,3.58116231,3457.7,3457.1,0.4986]
[1762569360773,0.144,3457.4,3457.3,0.4976]
[1762569361375,3.44434685,3457.4,3457.1,0.001]
[1762569361989,0.0046,3457.2,3457.1,0.001]
[1762569363092,2.89711417,3457.2,3457.1,0.001]
[1762569363399,4.03026157,3457.2,3457.1,0.001]
[1762569365379,5.28997357,3457.2,3457.1,0.001]
[1762569366328,3.55936157,3457.2,3457.1,0.001]
[1762569366486,4.03026157,3457.2,3457.1,0.001]
[1762569367781,4.71926157,3457.2,3457.1,0.001]
[1762569368318,5.97897357,3457.2,3457.1,0.001]
[1762569369413,6.09483583,3457.2,3457.1,0.001]
[1762569371945,6.50033983,3457.2,3457.1,0.001]
[1762569373112,0.007,3457.9,3457.1,0.9861]
[1762569373312,0.007,3457.9,3457.8,3.38201226]
[1762569373719,0.007,3457.9,3457.8,5.03324088]
[1762569373921,0.007,3457.9,3457.8,4.28261626]
[1762569374121,0.007,3457.9,3457.8,5.01166619]
[1762569374812,0.007,3457.9,3457.8,4.60616219]
[1762569376950,0.007,3457.9,3457.8,1.71414993]
[1762569377148,0.007,3457.9,3457.8,0.49]
[1762569378159,0.007,3457.9,3457.8,0.9851]
[1762569378936,0.007,3457.9,3457.8,0.49]
[1762569379726,0.007,3457.9,3457.5,2.89226128]
[1762569379930,0.007,3457.9,3457.3,3.38750972]
[1762569380141,0.007,3457.9,3457.4,3.35716763]
[1762569380657,0.007,3457.9,3457.4,3.85226763]
[1762569381653,0.007,3457.9,3457.8,0.49]
[1762569381851,0.00164145,3457.9,3457.8,0.49]
[1762569383324,0.00164145,3457.9,3457.5,0.6391]
[1762569384231,0.00164145,3457.9,3457.5,0.144]
[1762569384628,2.89206553,3457.8,3457.2,2.89250883]
[1762569384868,2.89213628,3457.7,3457.3,0.144]
[1762569385074,1.50344145,3457.9,3457.3,0.144]
[1762569385367,0.3695,3457.3,3457.1,0.001]
[1762569385572,3.26195851,3457.3,3457.1,0.001]
[1762569385724,0.3695,3457.3,3457.1,0.001]
[1762569385920,3.26196789,3457.3,3457.1,0.001]
[1762569386337,0.144,3457.4,3457.1,0.001]
[1762569386537,3.03635129,3457.4,3457.1,0.001]
[1762569386757,0.144,3457.4,3457.1,0.001]
[1762569386965,3.03635472,3457.4,3457.1,0.001]
[1762569387168,0.144,3457.4,3457.3,0.49]
[1762569387962,3.40590387,3457.4,3457.1,0.001]
[1762569388168,0.5135,3457.4,3457.1,0.001]
[1762569388333,3.40587897,3457.4,3457.1,0.001]
[1762569389841,0.4699,3457.2,3457.1,0.001]
[1762569390032,3.03638012,3457.4,3457.1,0.001]
[1762569390461,3.03637505,3457.4,3457.1,0.001]
[1762569391626,2.89244267,3457.3,3457.1,0.001]
[1762569392794,3.73191417,3457.2,3457.1,0.001]
[1762569392993,4.4778418,3457.2,3457.1,0.001]
[1762569393361,5.1678418,3457.2,3457.1,0.001]
[1762569394027,0.145,3457.5,3457.2,2.8924365]
[1762569394165,0.00164145,3457.9,3457.8,2.89201226]
[1762569394365,0.00164145,3457.9,3457.8,3.38831226]
[1762569394563,0.00164145,3457.9,3457.8,4.30963638]
[1762569394908,0.00164145,3457.9,3457.8,5.02981662]
[1762569395205,0.00164145,3457.9,3457.8,5.0008965]
[1762569395388,0.00164145,3457.9,3457.8,5.46778487]
[1762569395897,0.00164145,3457.9,3457.8,5.0008965]
[1762569396263,0.00164145,3457.9,3457.8,5.46778487]
[1762569397506,0.00164145,3457.9,3457.8,5.0008965]
[1762569397713,0.00164145,3457.9,3457.8,5.46778487]
[1762569398400,0.00164145,3457.9,3457.8,5.0008965]
[1762569398713,0.00164145,3457.9,3457.8,5.46778487]
[1762569399926,0.00164145,3457.9,3457.8,6.72749687]
[1762569400922,0.00164145,3457.9,3457.8,6.2606085]
[1762569402291,0.00164145,3457.9,3457.8,6.68106999]
[1762569402497,0.00164145,3457.9,3457.8,6.2606085]
[1762569404280,0.00164145,3457.9,3457.8,6.4046085]
[1762569409254,0.00164145,3457.9,3457.8,6.87149687]
[1762569409453,0.00164145,3457.9,3457.8,6.4046085]
[1762569410242,0.00164145,3457.9,3457.8,6.87149687]
[1762569410430,0.00164145,3457.9,3457.8,7.29195836]
[1762569410835,0.00164145,3457.9,3457.8,6.87149687]
[1762569411048,0.00164145,3457.9,3457.8,6.4046085]
[1762569412363,0.00164145,3457.9,3457.8,6.4056085]
[1762569412522,0.00164145,3457.9,3457.8,6.87249687]
[1762569412925,0.00164145,3457.9,3457.8,6.82606999]
[1762569415128,0.00164145,3457.9,3457.8,6.4056085]
[1762569416241,0.00164145,3457.9,3457.8,7.26303336]
[1762569417263,0.00164145,3457.9,3457.8,6.4056085]
[1762569417463,0.00164145,3457.9,3457.8,6.82606999]
[1762569417763,0.00164145,3457.9,3457.8,7.26303336]
[1762569418462,0.002,3458.3,3458.1,0.405504]
[1762569418655,0.002,3458.3,3458.1,11.60278275]
[1762569418850,0.005,3458.9,3458.4,3.29701452]
[1762569419065,0.005,3458.9,3458.4,5.04224162]
[1762569419266,0.005,3459.9,3459.8,3.29584448]
[1762569419433,0.005,3459.9,3459.8,3.75244448]
[1762569419632,0.005,3459.9,3459.8,3.32474788]
[1762569420047,0.005,3459.9,3459.8,3.78134788]
[1762569420465,0.3734,3459.9,3459.8,0.405504]
[1762569420643,0.005,3459.9,3459.8,3.75244448]
[1762569420967,1.0346,3459.9,3459.8,0.405504]
[1762569421167,0.3734,3459.9,3459.8,0.405504]
[1762569421462,0.005,3459.9,3459.8,3.75244448]
[1762569421872,0.005,3459.9,3459.8,3.29584448]
[1762569422035,0.005,3459.9,3459.8,3.75244448]
[1762569422236,0.005,3459.9,3459.8,0.862104]
[1762569422465,0.005,3459.9,3459.8,3.75244448]
[1762569422666,0.005,3459.9,3459.8,3.77374448]
[1762569423183,0.005,3459.9,3459.8,3.29584448]
[1762569423470,0.005,3459.9,3459.8,3.77374448]
[1762569423679,0.3837,3459.9,3459.8,3.29584448]
[1762569424167,0.3837,3459.9,3459.6,2.89044337]
[1762569424168,1.0274,3459.9,3459.7,1.665216]
[1762569424476,0.1911,3459.9,3459.7,1.665216]
[1762569424636,0.3868,3459.8,3459.7,1.665216]
[1762569425054,0.005,3459.9,3459.7,3.77379577]
[1762569425254,0.005,3459.9,3459.8,0.405504]
[1762569425773,0.3918,3459.9,3459.8,0.405504]
[1762569425970,1.0347,3459.9,3459.0,1.259712]
[1762569426146,0.0046,3459.8,3459.6,0.405504]
[1762569426336,0.005,3459.9,3459.7,3.29592802]
[1762569426536,0.005,3459.9,3459.7,3.77382802]
[1762569427471,0.005,3459.9,3459.8,3.77374448]
[1762569427777,0.005,3459.9,3459.8,4.25694448]
[1762569428071,0.005,3459.9,3459.8,3.77374448]
[1762569428576,1.0347,3459.9,3459.8,0.405504]
[1762569428870,1.0347,3459.9,3459.7,0.144]
[1762569429084,0.85307459,3459.8,3459.7,0.144]
[1762569429285,0.8447,3459.8,3459.7,0.144]
[1762569429694,3.73504048,3459.8,3459.7,0.144]
[1762569429889,0.8447,3459.8,3458.9,0.001]
[1762569430102,2.89072708,3459.4,3459.3,0.144]
[1762569430417,3.73542708,3459.4,3459.3,0.144]
[1762569430591,2.89100896,3459.0,3458.9,0.001]
[1762569430781,2.89450896,3459.0,3458.9,0.001]
[1762569430980,0.4611,3459.0,3458.9,0.001]
[1762569431181,3.35210896,3459.0,3458.9,0.001]
[1762569432931,0.4611,3459.0,3458.9,0.001]
[1762569433092,0.0035,3459.0,3458.9,0.001]
[1762569433439,0.4611,3459.0,3458.9,0.001]
[1762569433619,0.0035,3459.0,3458.9,0.001]
[1762569433934,3.35210896,3459.0,3458.9,0.001]
[1762569434218,3.976411,3459.0,3458.9,0.001]
[1762569435197,1.08540204,3459.0,3458.9,0.001]
[1762569435593,0.4611,3459.0,3458.9,0.001]
[1762569436197,3.35210896,3459.0,3458.9,0.001]
[1762569436606,0.4611,3459.0,3458.9,0.001]
[1762569437001,0.0035,3459.0,3458.9,0.001]
[1762569437202,0.835,3459.4,3458.9,2.92099087]
[1762569437432,0.2966,3459.4,3458.9,3.03607995]
[1762569437737,0.4576,3459.4,3458.9,3.03605921]
[1762569437925,3.34830034,3459.4,3458.9,0.145]
[1762569438304,2.89076245,3459.3,3458.9,0.145]
[1762569438509,0.3868,3459.0,3458.9,0.145]
[1762569439037,0.8436,3459.0,3458.9,0.145]
[1762569439434,0.3868,3459.0,3458.9,0.145]
[1762569440009,0.8436,3459.0,3458.9,0.145]
[1762569440829,0.8436,3459.0,3458.9,0.001]
[1762569441027,3.92299259,3459.0,3458.9,0.001]
[1762569444524,3.92299259,3459.0,3458.5,0.001]
[1762569444525,2.89134331,3458.6,3458.5,0.001]
[1762569444726,3.58694331,3458.6,3458.5,0.001]
[1762569444967,4.04454331,3458.6,3458.5,0.001]
[1762569445857,5.30425531,3458.6,3458.5,0.001]
[1762569446074,6.4315254,3458.6,3458.5,0.001]
[1762569447847,4.15130613,3458.3,3458.1,0.001]
[1762569448050,4.54160613,3458.3,3458.1,0.001]
[1762569448333,4.99920613,3458.3,3458.1,0.001]
[1762569448533,6.25923841,3458.3,3458.1,0.001]
[1762569449566,6.94923841,3458.3,3458.1,0.001]
[1762569451763,6.25923841,3458.3,3458.1,0.001]
[1762569451946,6.94923841,3458.3,3458.1,0.001]
[1762569452348,10.9693185,3458.3,3458.1,0.001]
[1762569455581,10.9683185,3458.3,3458.1,0.001]
[1762569455878,4.99952641,3458.3,3458.1,0.001]
[1762569456180,5.68852641,3458.3,3458.1,0.001]
[1762569456382,5.83252641,3458.3,3458.1,0.001]
[1762569456991,3.74329413,3458.3,3458.1,0.001]
[1762569457148,1.0793,3458.3,3458.1,0.001]
[1762569457349,0.689,3458.3,3458.2,0.4586]
[1762569457654,3.58059413,3458.3,3458.2,0.4586]
[1762569457859,3.03543077,3458.5,3458.2,0.4586]
[1762569457860,2.89156488,3458.4,3458.2,0.4586]
[1762569458046,3.58156488,3458.4,3458.2,0.4586]
[1762569458788,0.144,3458.5,3458.3,0.4576]
[1762569458789,3.03544544,3458.5,3458.3,0.4576]
[1762569459092,3.03542691,3458.5,3458.4,0.4576]
[1762569459587,2.89142691,3458.5,3458.4,0.4576]
[1762569460157,2.89151052,3458.4,3458.2,0.001]
[1762569460461,3.08923857,3459.1,3458.3,0.4917]
[1762569460661,0.69,3458.8,3458.4,0.4576]
[1762569460856,0.69,3458.8,3458.5,0.4917]
[1762569461053,0.002,3459.4,3458.7,0.6016]
[1762569461266,3.58272701,3459.4,3458.9,0.4576]
[1762569461692,3.58272701,3459.4,3458.9,4.24589654]
[1762569461693,0.002,3459.4,3458.9,4.24589654]
[1762569462570,0.002,3459.4,3458.9,4.27480746]
[1762569462891,0.002,3459.4,3458.9,5.39341461]
[1762569463495,0.002,3459.4,3458.9,5.36450369]
[1762569463992,0.002,3459.4,3458.9,2.47341115]
[1762569464290,0.002,3459.4,3458.9,5.36450369]
[1762569465466,2.89094154,3459.1,3458.9,0.4576]
[1762569465787,2.89300896,3459.0,3458.9,0.4576]
[1762569467591,0.002,3459.0,3458.6,0.4994]
[1762569467773,2.89303881,3459.0,3458.6,0.4994]
[1762569468105,0.4795,3458.7,3458.2,0.001]
[1762569468403,2.90318854,3458.5,3458.2,0.001]
[1762569469294,2.89152804,3458.4,3458.2,0.001]
[1762569469700,2.89143082,3458.5,3458.2,0.001]
[1762569469909,2.89125972,3458.7,3458.2,0.001]
[1762569470091,1.176,3458.8,3458.2,0.001]
[1762569470292,2.89135532,3458.6,3458.2,0.001]
[1762569470820,2.89134204,3458.7,3458.2,0.001]
[1762569471111,0.69,3458.8,3458.7,0.4865]
[1762569471286,3.58117613,3458.8,3458.7,0.4865]
[1762569471607,3.58117613,3458.8,3458.4,0.144]
[1762569471608,2.8912674,3458.7,3458.4,0.144]
[1762569471811,0.002,3459.0,3458.7,0.4865]
[1762569472110,0.002,3459.0,3458.3,0.4994]
[1762569472111,0.002,3459.0,3458.9,0.6305]
[1762569472282,0.002,3459.0,3458.9,0.144]
[1762569473088,3.25180896,3459.0,3458.9,0.144]
[1762569473614,0.3608,3459.0,3458.9,0.144]
[1762569473822,3.25180896,3459.0,3458.9,0.144]
[1762569473990,0.002,3459.0,3458.9,0.6305]
[1762569474607,2.64110412,3458.9,3458.6,0.144]
[1762569474806,3.24645972,3458.7,3458.6,0.144]
[1762569475008,3.24645972,3458.7,3458.3,0.405504]
[1762569475009,3.24647681,3458.7,3458.2,0.001]
[1762569475235,0.0071,3458.4,3458.3,0.144]